bitfinex/quotes_ETHUSD_20250213
["timestamp","ask_amount","ask_price","bid_price","bid_amount"]
[1739483573419,4.05954,2666.3,2665.7,0.54574124]
[1739483573731,3.75073,2666.2,2665.5,3.75156]
[1739483573929,3.75073,2666.2,2665.4,4.55089]
[1739483574130,3.75073,2666.2,2665.6,3.75149]
[1739483574504,0.309,2666.3,2665.6,3.75141]
[1739483574818,0.309,2666.3,2665.7,3.75135]
[1739483575234,3.75058,2666.3,2665.7,3.75124]
[1739483575923,3.75072,2666.2,2665.7,3.75134]
[1739483576117,7.50122,2666.3,2665.7,3.75134]
[1739483576447,3.75058,2666.3,2665.7,3.75126]
[1739483576645,7.50119,2666.3,2665.7,4.126386]
[1739483576821,3.75058,2666.3,2665.7,4.126386]
[1739483577022,3.75058,2666.3,2665.7,0.375126]
[1739483577418,3.75081,2666.1,2665.7,0.375126]
[1739483577962,3.75102,2666.0,2665.7,0.375126]
[1739483578280,0.015,2665.9,2665.4,0.7992]
[1739483578573,7.98620095,2666.2,2665.6,3.75138]
[1739483578776,3.76572,2666.2,2665.6,3.75138]
[1739483579069,3.76572,2666.2,2665.7,3.75131]
[1739483580006,3.76572,2666.2,2665.5,3.75155]
[1739483580352,0.015,2665.9,2665.4,0.7992]
[1739483580509,0.015,2665.9,2665.4,3.75176]
[1739483580510,3.76615,2665.9,2665.4,3.75176]
[1739483580710,4.07215,2665.9,2665.4,3.75176]
[1739483580959,3.75122,2665.8,2665.3,3.7519]
[1739483581272,3.7515,2665.6,2665.5,0.04729042]
[1739483581476,3.7515,2665.6,2665.1,4.55138]
[1739483581634,0.015,2665.7,2665.5,0.04772982]
[1739483581852,0.015,2665.7,2665.5,3.75155]
[1739483582205,0.015,2665.7,2665.6,0.04772982]
[1739483582491,5.25,2666.0,2665.6,0.04772982]
[1739483582651,4.05935,2666.2,2665.1,5.381683]
[1739483582836,3.75086,2666.1,2665.7,0.04772982]
[1739483583038,0.015,2666.1,2665.5,3.75157]
[1739483583335,3.76587,2666.1,2665.6,3.75142]
[1739483583533,3.76587,2666.1,2665.7,0.04778842]
[1739483583952,0.015,2666.1,2665.7,3.79906842]
[1739483584236,4.1776035,2666.4,2665.9,3.75098]
[1739483584437,3.75053,2666.3,2665.9,3.75098]
[1739483584690,3.75053,2666.3,2666.0,0.04602075]
[1739483585093,3.75053,2666.3,2665.9,3.75106]
[1739483585254,0.015,2666.3,2666.1,0.04602075]
[1739483585448,0.015,2666.3,2665.9,3.75101]
[1739483585657,3.76552,2666.3,2666.2,0.04602075]
[1739483585974,3.76551,2666.3,2666.2,0.04602075]
[1739483586141,3.7507,2666.2,2665.7,5.28693384]
[1739483586338,3.7507,2666.2,2665.7,4.53187]
[1739483586535,3.7507,2666.2,2665.8,0.04602075]
[1739483586891,3.7507,2666.2,2665.7,4.53187]
[1739483587096,3.76551,2666.3,2665.9,3.79703075]
[1739483587239,3.76551,2666.3,2665.9,3.75101]
[1739483587437,3.76551,2666.3,2666.0,0.04602075]
[1739483587657,0.015,2666.3,2666.0,0.04602075]
[1739483588193,0.015,2666.1,2666.0,0.04602075]
[1739483588692,0.015,2666.2,2665.9,3.75102]
[1739483588893,0.015,2666.2,2666.0,0.04602075]
[1739483589052,0.6127,2666.6,2666.2,3.75057]
[1739483589254,2.554,2666.7,2666.3,3.7504]
[1739483589471,0.015,2666.6,2666.5,3.75023]
[1739483590001,0.015,2666.6,2666.5,0.04577683]
[1739483590152,0.015,2666.6,2666.5,3.79600683]
[1739483590618,11.1268535,2667.0,2666.7,3.74985]
[1739483590619,3.6276035,2667.0,2666.7,3.74985]
[1739483590807,0.6127,2667.2,2666.7,3.74985]
[1739483590951,0.565,2667.1,2666.8,0.04576707]
[1739483591150,13.1920035,2667.1,2666.7,3.74985]
[1739483591494,3.6426035,2666.8,2666.5,3.75015]
[1739483592076,3.6426035,2666.8,2666.6,3.75007]
[1739483592278,3.6426035,2666.8,2666.5,3.75015]
[1739483592580,3.6426035,2666.8,2666.6,3.75007]
[1739483593070,3.6426035,2666.8,2666.5,3.75014]
[1739483593289,3.6426035,2666.8,2666.6,3.75008]
[1739483594470,0.015,2666.8,2666.7,3.74995]
[1739483595814,0.015,2666.8,2666.7,3.79538541]
[1739483596228,0.015,2666.8,2666.7,0.04543541]
[1739483597800,7.3924135,2666.8,2666.7,0.04543541]
[1739483598224,7.3924135,2666.8,2666.3,4.54594]
[1739483598526,7.3924135,2666.8,2666.7,0.04543541]
[1739483598722,7.3924135,2666.8,2666.3,8.29639]
[1739483598923,7.3924135,2666.8,2666.7,0.04543541]
[1739483599124,9.6424135,2666.8,2666.3,8.29632]
[1739483599285,9.6424135,2666.8,2666.3,4.54591]
[1739483599487,2.265,2666.6,2666.4,3.75035]
[1739483599687,2.265,2666.6,2666.4,3.79511231]
[1739483599986,2.265,2666.6,2666.4,0.04476231]
[1739483600504,2.265,2666.6,2666.5,3.75023]
[1739483601079,2.265,2666.6,2666.5,3.79499231]
[1739483601560,2.265,2666.6,2666.5,0.04476231]
[1739483601969,2.265,2666.6,2666.5,3.79499231]
[1739483602274,2.25,2666.8,2666.6,3.75008]
[1739483602451,2.25,2666.8,2666.6,3.75001]
[1739483602646,2.265,2666.8,2666.7,3.79452701]
[1739483602854,2.265,2666.8,2666.7,0.04457701]
[1739483604654,2.265,2666.8,2666.7,3.79452701]
[1739483604988,2.265,2666.8,2666.7,0.04457701]
[1739483605980,0.015,2666.7,2666.5,3.75017]
[1739483606315,0.015,2666.7,2666.6,0.04457701]
[1739483607524,0.015,2666.7,2666.6,3.79466701]
[1739483607813,0.015,2666.7,2666.6,3.75009]
[1739483608291,0.015,2666.7,2666.6,0.04457701]
[1739483608796,0.015,2666.7,2666.6,3.79466701]
[1739483610218,0.015,2666.7,2666.6,0.04457701]
[1739483610219,6.56495,2666.7,2666.6,0.04457701]
[1739483610583,2.265,2666.5,2666.1,3.75071]
[1739483610819,2.265,2666.5,2666.4,3.75037]
[1739483610952,2.25,2666.7,2666.6,3.75009]
[1739483611557,3.6276035,2667.4,2666.6,0.82420298]
[1739483611767,7.3765735,2667.4,2666.9,3.74959]
[1739483612002,2.815,2667.3,2666.9,3.74959]
[1739483612202,2.815,2667.3,2667.0,0.03974703]
[1739483612708,2.815,2667.3,2667.0,3.78923703]
[1739483613066,2.265,2667.3,2667.0,3.78919703]
[1739483613267,2.265,2667.3,2667.1,3.74938]
[1739483613747,2.815,2667.3,2667.2,3.78899703]
[1739483613879,0.565,2667.3,2667.2,3.78899703]
[1739483614075,2.25,2667.6,2667.5,3.74882]
[1739483614388,2.265,2667.6,2667.5,3.74882]
[1739483614591,2.265,2667.6,2667.5,0.03910407]
[1739483614935,2.815,2667.6,2667.5,0.03910407]
[1739483615239,2.815,2667.5,2667.4,3.74896]
[1739483615685,2.815,2667.5,2667.3,7.49811]
[1739483615923,2.815,2667.5,2667.4,3.74896]
[1739483617112,2.815,2667.5,2667.3,3.74902]
[1739483617113,2.25,2667.7,2667.6,3.74868]
[1739483617323,2.546,2667.9,2667.6,3.74855]
[1739483617545,0.015,2667.8,2667.6,7.49713]
[1739483617746,2.815,2667.8,2667.7,3.74854]
[1739483617946,2.265,2667.8,2667.7,3.74854]
[1739483618147,2.265,2667.8,2667.7,3.54854]
[1739483618677,2.815,2667.8,2667.7,3.54854]
[1739483619315,5.8776035,2668.0,2667.7,3.54854]
[1739483619519,5.8776035,2668.0,2667.8,3.74832]
[1739483619833,0.015,2667.9,2667.8,3.74832]
[1739483620024,3.6276035,2668.3,2668.1,3.74796]
[1739483620223,2.25,2668.2,2668.1,3.74796]
[1739483620426,2.265,2668.2,2668.1,3.74791]
[1739483620842,2.815,2668.2,2668.1,3.74791]
[1739483621827,0.565,2668.2,2668.1,3.78482228]
[1739483622751,0.015,2668.2,2668.1,3.78482228]
[1739483624675,0.5575,2668.5,2668.1,3.78482228]
[1739483624976,0.015,2668.2,2668.1,0.03691228]
[1739483625132,6.87154,2668.2,2668.1,0.03691228]
[1739483625332,0.015,2667.7,2666.8,0.7711]
[1739483625556,0.565,2667.3,2667.1,3.74926]
[1739483625894,0.565,2667.3,2666.9,3.78644333]
[1739483626015,0.565,2667.3,2667.2,0.03731156]
[1739483626458,0.565,2667.3,2667.0,3.74945]
[1739483626641,0.565,2667.3,2667.2,0.03731156]
[1739483626953,0.565,2667.3,2667.1,3.74937]
[1739483627260,0.565,2667.3,2667.2,0.03731156]
[1739483627834,0.565,2667.3,2667.0,7.49887]
[1739483628215,0.565,2667.3,2667.2,0.03731156]
[1739483628411,0.565,2667.3,2667.1,3.74935]
[1739483628633,0.565,2667.3,2667.2,0.03731156]
[1739483628915,0.565,2667.3,2667.1,3.74938]
[1739483629151,0.565,2667.3,2667.2,0.03731156]
[1739483629355,0.565,2667.3,2667.2,3.78656156]
[1739483629560,0.565,2667.3,2667.2,3.74925]
[1739483629758,0.565,2667.3,2667.2,0.03731156]
[1739483629966,0.565,2667.3,2667.2,3.78656156]
[1739483631329,3.6276035,2667.4,2667.3,3.7491]
[1739483631779,2.265,2667.5,2667.3,3.78692771]
[1739483632354,2.265,2667.5,2667.4,3.74896]
[1739483632553,2.25,2667.9,2667.6,3.74864]
[1739483632761,2.25,2667.9,2667.6,7.49722]
[1739483632989,0.015,2667.8,2667.7,0.03769135]
[1739483633142,0.015,2667.8,2667.7,3.78623135]
[1739483634087,0.015,2667.8,2667.7,0.03769135]
[1739483634971,6.5634,2667.8,2667.7,0.03769135]
[1739483635169,6.8721,2667.8,2667.7,0.03769135]
[1739483635372,2.815,2667.4,2666.9,7.57527]
[1739483635575,4.1926035,2667.4,2667.2,3.74923]
[1739483635746,0.565,2667.4,2667.2,3.74923]
[1739483635947,2.25,2667.6,2667.5,3.74882]
[1739483636146,3.6276035,2667.7,2667.6,3.74868]
[1739483636578,3.6426035,2667.7,2667.6,3.78476196]
[1739483637092,2.25,2667.9,2667.8,3.7484]
[1739483637293,2.25,2667.9,2667.7,3.74852]
[1739483637471,2.265,2667.9,2667.8,0.03622802]
[1739483637658,2.265,2667.9,2667.8,3.78462802]
[1739483638587,2.265,2667.9,2667.8,0.03622802]
[1739483639792,6.56326,2667.9,2667.8,0.03622802]
[1739483640188,2.265,2667.7,2667.3,3.0]
[1739483640389,5.89022417,2667.7,2667.3,3.0]
[1739483640566,5.89022417,2667.7,2667.3,3.74904]
[1739483640896,5.89022417,2667.7,2667.4,0.03622802]
[1739483640897,9.63877417,2667.7,2667.4,0.03622802]
[1739483641091,9.63877417,2667.7,2667.3,3.7491]
[1739483641294,9.63877417,2667.7,2667.5,0.03640332]
[1739483641480,9.63877417,2667.7,2667.3,3.7491]
[1739483641682,10.18877417,2667.7,2667.6,0.03640332]
[1739483641987,2.2575,2667.5,2667.4,3.74896]
[1739483642196,2.8075,2667.5,2667.4,3.74896]
[1739483642606,2.815,2667.5,2667.4,3.74896]
[1739483643104,2.81264424,2667.5,2667.4,3.74896]
[1739483643993,0.56264424,2667.5,2667.4,3.74896]
[1739483644167,5.8776035,2668.0,2667.5,3.74869]
[1739483644500,2.8075,2667.8,2667.7,3.74852]
[1739483644863,2.25,2668.2,2667.9,3.74826]
[1739483645062,2.25,2668.2,2667.8,3.74834]
[1739483646008,2.2271005,2668.0,2667.7,4.53666]
[1739483646808,2.22469729,2668.0,2667.7,4.53666]
[1739483648272,2.22238798,2668.0,2667.7,4.53666]
[1739483648506,2.22238798,2668.0,2667.7,4.5367]
[1739483648678,2.78738798,2668.0,2667.9,3.74826]
[1739483649067,2.78505551,2668.0,2667.9,3.74826]
[1739483649294,5.8851035,2668.3,2668.1,3.74797]
[1739483649607,5.32,2668.5,2668.1,3.74797]
[1739483650107,0.0075,2668.4,2667.7,4.9904]
[1739483650315,0.0075,2668.4,2668.3,3.7477]
[1739483650672,0.0075,2668.4,2668.2,3.74782]
[1739483650873,0.0075,2668.4,2668.3,0.03556588]
[1739483651609,0.0075,2668.4,2668.0,3.74811]
[1739483651783,0.0075,2668.4,2668.3,0.03556588]
[1739483651985,0.0075,2668.4,2668.0,3.74811]
[1739483652185,0.0075,2668.4,2668.3,0.03556588]
[1739483652382,3.75512,2668.4,2668.0,3.74811]
[1739483652902,3.75512,2668.4,2668.1,0.03556588]
[1739483653207,0.0075,2668.4,2668.1,0.03556588]
[1739483653438,0.0075,2668.4,2668.1,3.78352588]
[1739483653614,0.565,2668.4,2667.8,4.24733]
[1739483653923,6.01287,2668.2,2667.8,3.74839]
[1739483654103,2.8,2668.1,2667.8,3.74839]
[1739483657025,2.25,2668.2,2667.9,4.576697]
[1739483657948,3.74826,2667.9,2667.0,0.8158]
[1739483658115,3.74826,2667.9,2667.2,3.74914]
[1739483658116,3.74848,2667.8,2667.2,3.74914]
[1739483658302,3.7486,2667.7,2667.2,3.74914]
[1739483658506,3.7487,2667.6,2667.2,3.74914]
[1739483658753,3.7487,2667.6,2667.3,0.374914]
[1739483658928,3.74858,2667.7,2667.3,7.124004]
[1739483659246,3.74848,2667.8,2667.3,7.124004]
[1739483659750,3.1237,2667.9,2667.3,0.374914]
[1739483659898,3.1237,2667.9,2667.5,3.74882]
[1739483660318,3.1237,2667.9,2667.6,3.74868]
[1739483660520,3.1237,2667.9,2667.3,4.123914]
[1739483660743,3.1237,2667.9,2667.4,4.1612514]
[1739483661040,2.815,2667.9,2667.5,3.74874]
[1739483662041,2.815,2667.9,2667.6,3.74867]
[1739483662549,2.815,2667.9,2667.7,3.74844]
[1739483662751,2.815,2667.9,2667.6,3.74867]
[1739483663299,6.56332,2667.9,2667.4,4.1612214]
[1739483664011,6.56332,2667.9,2667.4,0.4123914]
[1739483664207,0.0075,2667.6,2667.3,1.200814]
[1739483664451,6.56368,2667.6,2667.5,0.03526403]
[1739483664619,0.0075,2667.4,2667.1,3.74927]
[1739483665524,0.0075,2667.2,2667.0,3.74952]
[1739483665726,0.0075,2667.2,2666.9,3.74958]
[1739483665727,0.0075,2667.2,2667.1,3.74939]
[1739483666773,2.25,2667.4,2667.3,3.7491]
[1739483666979,0.015,2667.4,2667.3,3.7491]
[1739483667838,0.015,2667.4,2667.2,3.74924]
[1739483669562,0.015,2667.4,2667.1,7.49866]
[1739483669765,0.015,2667.4,2667.1,3.74932]
[1739483669971,0.015,2667.4,2666.9,7.49916]
[1739483670301,6.014,2667.4,2667.0,3.74952]
[1739483670500,2.265,2667.4,2667.1,3.74936]
[1739483670803,2.265,2667.4,2667.2,0.03613065]
[1739483672359,2.265,2667.4,2667.0,6.7495]
[1739483672560,2.265,2667.4,2667.1,0.03620857]
[1739483673053,2.265,2667.4,2667.1,3.78558857]
[1739483673253,2.265,2667.4,2667.1,0.03620857]
[1739483673952,2.265,2667.4,2667.3,3.7491]
[1739483674203,2.265,2667.4,2667.3,3.78525987]
[1739483674711,2.265,2667.4,2667.3,0.03615987]
[1739483674907,0.015,2667.4,2667.3,0.03615987]
[1739483675351,0.015,2667.4,2667.2,3.74924]
[1739483675552,0.015,2667.4,2667.3,0.03615987]
[1739483675759,0.015,2667.4,2667.2,3.74916]
[1739483676084,0.015,2667.4,2667.3,0.04906586]
[1739483676249,0.015,2667.4,2667.3,0.035086]
[1739483676601,0.015,2667.4,2667.2,3.74916]
[1739483677967,2.25,2667.6,2667.3,3.74903]
[1739483678247,0.015,2667.5,2667.2,0.451316]
[1739483678461,0.0075,2667.5,2667.4,3.74896]
[1739483679660,2.265,2667.6,2667.4,3.74896]
[1739483680663,0.015,2667.6,2667.5,3.74882]
[1739483680954,2.265,2667.6,2667.4,3.74896]
[1739483681097,5.32,2667.7,2667.4,3.74889]
[1739483681297,5.32,2667.7,2667.4,4.498687]
[1739483682053,5.32,2667.7,2667.4,0.749797]
[1739483682196,5.32,2667.7,2667.3,3.74902]
[1739483682396,5.32,2667.7,2667.4,3.74886]
[1739483683354,2.25,2667.8,2667.4,7.49776]
[1739483683605,2.25,2667.8,2667.4,3.74886]
[1739483685141,2.25,2667.8,2667.4,3.74887]
[1739483685341,5.9982,2668.0,2667.5,4.909537]
[1739483685570,2.815,2667.9,2667.5,3.74875]
[1739483686246,6.5633,2667.9,2667.4,3.74894]
[1739483687079,6.5633,2667.9,2667.3,4.53488]
[1739483687285,0.015,2667.6,2667.3,4.53488]
[1739483687491,0.015,2667.6,2667.2,6.74923]
[1739483688857,0.015,2667.6,2667.0,0.7943]
[1739483688858,0.015,2667.4,2667.0,0.7943]
[1739483689168,0.015,2667.4,2667.2,3.74914]
[1739483689935,0.015,2667.4,2667.3,3.7491]
[1739483690144,0.015,2667.4,2667.2,3.74914]
[1739483690145,5.8776035,2667.7,2667.2,4.878515]
[1739483690322,9.6262135,2667.7,2667.2,4.878515]
[1739483690525,0.015,2667.6,2667.3,3.74907]
[1739483691670,0.015,2667.6,2667.2,1.129285]
[1739483691982,0.3087,2667.9,2667.7,3.74848]
[1739483691983,2.25,2667.9,2667.7,3.74848]
[1739483692766,0.0075,2667.9,2667.7,3.74848]
[1739483693470,0.0075,2667.9,2667.8,3.7484]
[1739483693825,0.0075,2667.9,2667.7,3.74853]
[1739483694067,0.0075,2667.9,2667.6,3.74866]
[1739483694276,0.0075,2667.9,2667.5,3.74875]
[1739483694482,0.015,2667.7,2667.4,3.74893]
[1739483695327,0.015,2667.7,2667.3,4.52334]
[1739483695529,6.01357,2667.7,2667.3,4.52334]
[1739483697332,6.01357,2667.7,2667.3,0.7743]
[1739483697537,3.74885,2667.5,2667.2,3.0]
[1739483697858,0.015,2667.5,2667.2,3.0]
[1739483698049,0.015,2667.5,2667.2,6.74922]
[1739483698778,2.25,2667.4,2667.2,3.0]
[1739483699835,2.265,2667.5,2667.2,3.0]
[1739483700088,2.265,2667.5,2667.2,6.74918]
[1739483700587,2.265,2667.5,2667.3,3.74908]
[1739483700883,2.25,2667.4,2667.2,4.874539]
[1739483701122,2.25,2667.4,2667.2,3.74918]
[1739483701742,2.265,2667.5,2667.2,3.74918]
[1739483702835,6.01385,2667.5,2667.1,3.74938]
[1739483704094,6.01385,2667.5,2666.6,3.75002]
[1739483704095,6.01458,2667.0,2666.6,3.75002]
[1739483704390,6.01458,2667.0,2666.7,3.0]
[1739483704593,2.265,2667.0,2666.7,3.0]
[1739483704737,2.265,2667.0,2666.7,6.74991]
[1739483705233,2.25,2666.9,2666.2,1.56982453]
[1739483705473,2.265,2666.9,2666.8,3.7497]
[1739483706053,0.0075,2666.8,2666.7,7.52414]
[1739483706304,0.0075,2666.8,2666.7,6.74994]
[1739483708369,2.5587,2667.3,2666.7,3.0]
[1739483708556,0.015,2667.0,2666.8,3.7498]
[1739483709314,0.015,2667.0,2666.7,7.501717]
[1739483709735,0.015,2667.0,2666.8,3.74974]
[1739483710146,0.015,2667.0,2666.9,3.74967]
[1739483710401,2.25,2667.1,2666.9,3.74967]
[1739483710602,2.25,2667.1,2666.8,3.7498]
[1739483710603,0.0075,2667.0,2666.8,3.7498]
[1739483710788,0.0075,2667.0,2666.7,3.751817]
[1739483711096,0.0075,2667.0,2666.7,7.501707]
[1739483711389,0.015,2667.1,2666.8,3.74969]
[1739483711895,0.015,2667.1,2666.8,3.74974]
[1739483712296,0.015,2667.1,2666.7,3.751817]
[1739483712683,2.25,2667.0,2666.7,7.501757]
[1739483712887,2.25,2667.0,2666.5,4.5184]
[1739483712888,0.015,2666.9,2666.5,4.51836]
[1739483713068,4.0586,2666.8,2666.4,3.75033]
[1739483713416,0.3087,2666.8,2666.6,3.75009]
[1739483713591,0.015,2666.9,2666.6,3.75009]
[1739483713769,0.015,2666.9,2666.7,3.74993]
[1739483713966,0.015,2666.9,2666.6,3.75009]
[1739483714617,0.015,2666.9,2666.6,1.050034]
[1739483714955,2.25,2666.8,2666.3,7.74037255]
[1739483715185,2.25,2666.8,2666.4,3.75025]
[1739483716067,0.015,2666.7,2666.3,0.98996255]
[1739483716265,6.01497,2666.7,2666.3,0.7879]
[1739483716482,2.265,2666.5,2666.1,3.75069]
[1739483716792,2.265,2666.5,2666.3,3.75043]
[1739483717456,0.015,2666.6,2666.1,0.453089]
[1739483717662,0.015,2666.6,2666.2,3.75065]
[1739483717955,0.015,2666.6,2666.4,3.75035]
[1739483718371,0.015,2666.6,2666.5,3.75023]
[1739483718595,2.25,2666.8,2666.5,3.75023]
[1739483718800,0.015,2666.7,2666.5,3.75023]
[1739483719101,0.015,2666.5,2666.3,3.75051]
[1739483719787,0.015,2666.5,2666.4,3.75037]
[1739483720182,0.015,2666.6,2666.4,3.75037]
[1739483721277,2.265,2666.6,2666.5,3.75023]
[1739483721722,2.265,2666.6,2666.4,3.75037]
[1739483723317,0.015,2666.6,2666.4,3.75037]
[1739483723617,0.015,2666.6,2666.5,3.75023]
[1739483723765,2.25,2666.7,2666.6,3.75009]
[1739483724285,0.015,2666.7,2666.6,3.75009]
[1739483724927,0.015,2666.7,2666.5,7.50046]
[1739483725134,0.015,2666.7,2666.6,3.75009]
[1739483726374,2.25,2666.8,2666.7,3.74995]
[1739483726611,7.57,2667.0,2666.8,3.74969]
[1739483726882,7.5775,2667.0,2666.9,3.74967]
[1739483727072,7.57,2667.0,2666.9,3.74967]
[1739483727600,0.015,2667.2,2667.0,3.74943]
[1739483728035,0.015,2667.2,2667.1,3.74939]
[1739483728782,0.0075,2667.2,2667.1,3.74939]
[1739483729099,0.015,2667.4,2667.0,0.7611]
[1739483729299,0.015,2667.4,2667.3,3.7491]
[1739483729990,2.265,2667.4,2667.3,3.7491]
[1739483731044,0.015,2667.4,2667.2,3.74923]
[1739483731541,0.015,2667.3,2667.1,3.74932]
[1739483732340,2.25,2667.3,2667.2,0.7928]
[1739483732546,2.25,2667.3,2667.2,4.54205]
[1739483733425,2.265,2667.6,2667.2,4.54205]
[1739483734558,6.01369,2667.6,2667.2,3.74925]
[1739483734901,6.01369,2667.6,2667.0,4.5267]
[1739483734902,2.265,2667.6,2667.3,3.7491]
[1739483736158,2.265,2667.6,2667.2,3.74923]
[1739483736592,6.01377,2667.6,2667.1,3.74937]
[1739483736741,2.265,2667.4,2667.1,3.74937]
[1739483737837,0.015,2667.4,2667.2,3.74922]
[1739483738039,0.015,2667.4,2667.3,3.7491]
[1739483738448,0.015,2667.4,2667.2,3.74922]
[1739483740662,2.265,2667.4,2667.3,3.7491]
[1739483741795,0.015,2667.4,2667.2,3.74924]
[1739483742664,0.015,2667.4,2667.1,3.74928]
[1739483743050,0.015,2667.4,2667.1,7.49859]
[1739483743696,0.015,2667.4,2667.1,3.74928]
[1739483743895,0.015,2667.4,2667.2,3.74923]
[1739483744295,0.015,2667.4,2667.3,3.7491]
[1739483744666,2.25,2667.7,2667.6,3.74868]
[1739483745199,2.265,2667.7,2667.6,3.74868]
[1739483745504,2.2575,2667.7,2667.6,3.74868]
[1739483745658,2.25,2667.7,2667.6,3.74868]
[1739483746459,2.25,2667.7,2667.6,4.581018]
[1739483747695,0.565,2668.0,2667.6,4.581018]
[1739483747902,0.015,2667.8,2667.7,3.74854]
[1739483748695,0.0075,2667.8,2667.7,3.74854]
[1739483749001,2.265,2667.9,2667.8,3.7484]
[1739483749383,2.25,2667.9,2667.8,3.7484]
[1739483749553,2.25,2668.1,2667.9,3.74816]
[1739483750002,2.1355,2668.0,2667.9,3.74816]
[1739483750809,2.1355,2668.0,2667.8,3.7484]
[1739483751006,2.1355,2668.0,2667.8,4.4981]
[1739483751366,2.021,2668.0,2667.8,4.49803]
[1739483752123,0.015,2668.2,2667.8,3.74832]
[1739483752332,0.015,2668.2,2668.1,3.74798]
[1739483753237,0.015,2668.3,2668.1,3.74798]
[1739483753524,0.015,2668.3,2668.2,3.74784]
[1739483754037,2.021,2668.4,2668.0,0.783]
[1739483754209,2.021,2668.4,2668.3,3.7477]
[1739483754210,2.036,2668.4,2668.3,3.7477]
[1739483755116,2.036,2668.4,2668.2,3.74782]
[1739483755317,2.036,2668.4,2668.2,7.4956]
[1739483755515,2.036,2668.4,2668.3,3.7477]
[1739483755715,2.036,2668.4,2668.2,7.49555]
[1739483756054,2.036,2668.4,2668.3,3.7477]
[1739483760793,2.021,2668.4,2668.3,4.497254]
[1739483761116,2.25,2668.8,2668.5,3.74734]
[1739483761295,2.25,2668.8,2668.6,3.74725]
[1739483762038,2.25,2668.8,2668.4,3.74744]
[1739483762189,2.25,2668.8,2668.5,3.74741]
[1739483763208,2.25,2668.8,2668.6,3.74722]
[1739483763514,2.25,2668.8,2668.5,3.74741]
[1739483763515,2.265,2668.8,2668.7,3.74714]
[1739483763715,2.265,2668.8,2668.6,3.74726]
[1739483763961,2.265,2668.8,2668.7,3.74714]
[1739483765046,0.015,2668.8,2668.7,3.74714]
[1739483765861,2.25,2668.9,2668.8,3.747]
[1739483766211,2.265,2668.9,2668.8,3.747]
[1739483766441,2.265,2668.9,2668.7,4.49658]
[1739483766746,2.265,2668.9,2668.7,8.24372]
[1739483766947,2.265,2668.9,2668.7,4.49658]
[1739483767143,2.265,2668.9,2668.7,3.74714]
[1739483767347,0.015,2668.8,2668.4,4.54076]
[1739483767661,0.015,2668.8,2668.6,3.74716]
[1739483767805,2.5587,2668.9,2668.7,3.74714]
[1739483768008,2.25,2668.9,2668.8,3.747]
[1739483768276,2.265,2668.9,2668.8,4.496414]
[1739483769041,2.25,2668.9,2668.8,4.496414]
[1739483769255,2.25,2668.9,2668.8,5.285214]
[1739483770786,0.0075,2669.2,2669.0,3.74671]
[1739483772097,0.0075,2669.2,2668.9,3.74679]
[1739483772294,0.0075,2669.0,2668.8,3.747]
[1739483773344,0.0075,2669.0,2668.8,7.49393]
[1739483773694,0.0075,2669.0,2668.8,3.74693]
[1739483774506,2.25,2668.5,2668.1,0.7625]
[1739483774715,0.015,2668.4,2668.2,3.74777]
[1739483774992,0.015,2668.4,2668.2,4.198797]
[1739483775195,0.015,2668.4,2668.3,3.7477]
[1739483777308,0.0075,2668.2,2667.8,4.54663]
[1739483777449,0.0075,2668.2,2668.0,3.74809]
[1739483778376,0.0075,2668.2,2667.9,3.74825]
[1739483778710,0.0075,2668.2,2667.8,4.54661]
[1739483778851,0.0075,2668.2,2667.8,3.74831]
[1739483779056,0.0075,2668.2,2668.0,3.74812]
[1739483781724,0.0075,2668.2,2668.0,7.49615]
[1739483781922,0.0075,2668.2,2668.1,3.74798]
[1739483782223,0.3087,2668.4,2668.1,3.74798]
[1739483782224,2.25,2668.4,2668.1,3.74798]
[1739483782384,2.25,2668.4,2668.3,3.7477]
[1739483783477,2.265,2668.4,2668.3,3.7477]
[1739483784323,2.265,2668.4,2668.2,3.74784]
[1739483785338,2.265,2668.4,2668.1,3.74789]
[1739483785517,2.265,2668.4,2668.2,3.74783]
[1739483786023,2.265,2668.4,2668.1,3.74797]
[1739483787295,2.265,2668.4,2668.1,7.49588]
[1739483790057,2.265,2668.4,2668.2,3.74783]
[1739483790255,2.25,2668.4,2668.3,3.7477]
[1739483792452,5.32,2668.5,2668.4,4.56826]
[1739483793065,0.015,2668.7,2668.6,3.74725]
[1739483794566,0.015,2668.7,2668.5,3.74742]
[1739483794567,2.25,2668.8,2668.5,3.74728]
[1739483794933,2.25,2668.8,2668.6,3.74727]
[1739483795767,2.25,2668.8,2668.6,3.74719]
[1739483796321,2.25,2668.8,2668.7,3.74714]
[1739483797072,2.25,2668.8,2668.5,3.7474]
[1739483797230,0.015,2668.5,2667.8,1.169531]
[1739483797585,2.25,2668.4,2668.2,3.74775]
[1739483797716,5.32,2668.5,2668.4,3.74756]
[1739483797916,2.25,2668.6,2668.5,3.74742]
[1739483798425,0.0075,2668.7,2668.5,3.74742]